bitfinex/quotes_ETHUSD_20251119
["timestamp","ask_amount","ask_price","bid_price","bid_amount"]
[1763587287556,0.4932,2981.7,2979.8,0.128]
[1763587287759,0.4932,2981.7,2979.9,0.26155817]
[1763587288076,0.1891,2983.5,2981.2,0.1]
[1763587288077,0.4932,2983.1,2981.2,0.1]
[1763587288233,0.1891,2983.5,2982.1,0.405504]
[1763587288569,0.1939,2985.2,2982.1,0.405504]
[1763587288570,0.4932,2984.1,2982.1,0.405504]
[1763587288732,0.4932,2984.1,2982.3,0.505504]
[1763587288940,0.4932,2984.1,2982.5,0.405504]
[1763587289134,0.4932,2984.1,2981.6,0.405504]
[1763587289449,0.4932,2984.1,2981.7,1.03499264]
[1763587289783,0.4932,2984.1,2981.7,0.90699264]
[1763587289950,0.4932,2984.1,2982.0,0.405504]
[1763587290139,0.4932,2984.1,2981.6,3.54249446]
[1763587290486,0.4932,2984.1,2981.9,0.001]
[1763587290791,0.4932,2984.1,2981.9,0.1896]
[1763587290943,0.4932,2984.0,2982.5,0.405504]
[1763587291281,0.4932,2984.0,2982.0,0.128]
[1763587291282,0.4932,2984.0,2982.1,0.405504]
[1763587291441,0.4932,2984.0,2981.9,0.001]
[1763587291788,0.4932,2984.0,2982.0,0.128]
[1763587291937,0.1891,2982.0,2981.9,0.001]
[1763587292142,0.1891,2982.0,2981.6,0.001]
[1763587292341,0.4932,2982.5,2981.6,0.001]
[1763587292665,0.1939,2985.2,2981.7,0.90699264]
[1763587292666,0.4932,2983.7,2981.7,0.90699264]
[1763587292852,0.6871,2985.2,2982.5,0.405504]
[1763587293062,0.6871,2985.2,2983.3,0.405504]
[1763587293238,0.6871,2984.7,2983.6,1.31249664]
[1763587293442,0.6871,2984.7,2982.6,0.90699264]
[1763587293642,0.4932,2984.6,2982.7,0.533504]
[1763587293851,0.4932,2984.6,2983.1,0.405504]
[1763587294058,0.4932,2984.6,2983.2,0.128]
[1763587294252,0.4932,2984.6,2983.3,0.405504]
[1763587294644,0.4932,2984.6,2983.5,0.405504]
[1763587294873,0.4932,2984.6,2983.6,0.128]
[1763587295189,0.4932,2984.6,2983.7,0.128]
[1763587295552,0.4932,2984.6,2982.6,1.09659264]
[1763587295759,0.4932,2984.6,2982.8,1.31249664]
[1763587296082,0.4932,2984.5,2982.9,0.38527951]
[1763587296374,0.4932,2984.5,2982.8,0.128]
[1763587296578,0.4932,2984.5,2982.9,0.533504]
[1763587296770,0.4932,2984.5,2983.1,0.405504]
[1763587296978,0.4932,2985.1,2983.1,0.405504]
[1763587297189,0.4932,2985.1,2983.4,0.405504]
[1763587297357,0.4932,2985.1,2983.8,2.03]
[1763587297553,0.6823,2985.6,2983.7,0.405504]
[1763587297757,0.6823,2985.6,2983.9,0.405504]
[1763587297958,0.4681,2985.5,2984.1,0.405504]
[1763587298164,0.4681,2985.5,2984.3,0.405504]
[1763587298564,0.4681,2985.5,2984.5,0.405504]
[1763587299006,0.4681,2985.8,2983.8,0.405504]
[1763587299160,0.4681,2985.8,2984.0,0.405504]
[1763587299491,0.4681,2985.8,2983.9,0.128]
[1763587299492,0.4681,2986.2,2984.6,1.31249664]
[1763587300059,0.4681,2986.8,2985.2,0.405504]
[1763587300360,0.1891,2987.0,2985.8,0.405504]
[1763587300670,0.4681,2986.8,2984.8,0.1896]
[1763587301012,0.97234457,2986.8,2984.9,0.128]
[1763587301164,0.4681,2986.7,2984.6,0.90699264]
[1763587301492,0.4681,2986.7,2983.7,3.35148908]
[1763587301493,0.4681,2986.7,2985.2,0.405504]
[1763587301656,0.4681,2986.7,2985.7,0.1]
[1763587301862,0.4681,2987.3,2985.8,0.533504]
[1763587302065,0.4681,2986.8,2985.8,0.405504]
[1763587302357,0.4681,2986.8,2985.9,0.128]
[1763587302557,0.4681,2986.8,2984.6,0.90699264]
[1763587302786,0.4681,2986.8,2985.3,0.1]
[1763587302990,0.4681,2986.8,2985.4,0.128]
[1763587303495,0.4681,2986.8,2985.5,0.128]
[1763587303669,0.4681,2986.8,2984.4,10.05227181]
[1763587303994,0.4681,2986.8,2985.1,0.405504]
[1763587304294,0.4681,2986.8,2985.7,0.405504]
[1763587304496,0.4681,2986.8,2984.4,10.05227181]
[1763587304497,0.4681,2986.8,2985.3,0.1]
[1763587304700,0.4681,2986.8,2984.4,10.05227181]
[1763587304874,0.4681,2986.8,2985.0,0.1]
[1763587305195,0.4681,2986.8,2985.7,0.405504]
[1763587305397,0.4681,2986.8,2985.8,0.128]
[1763587305697,1.01915458,2986.8,2983.7,3.35152078]
[1763587305901,1.01915458,2986.8,2983.6,10.05496713]
[1763587306075,0.4681,2986.7,2983.6,6.70331142]
[1763587306276,0.19261472,2986.6,2984.0,8.01642293]
[1763587306489,0.4681,2986.7,2984.5,8.01642293]
[1763587306689,0.4681,2986.7,2983.6,13.40662284]
[1763587306690,0.4681,2986.6,2984.0,8.01642293]
[1763587306890,0.4681,2986.6,2984.5,8.01642293]
[1763587307091,0.4681,2986.6,2984.6,0.128]
[1763587307293,0.4681,2986.6,2984.5,0.128]
[1763587307490,0.4681,2986.6,2982.7,10.0]
[1763587307491,0.1909,2984.6,2983.2,8.01642293]
[1763587307695,0.1909,2983.3,2981.7,3.35379146]
[1763587307903,0.1909,2983.3,2980.3,13.63166287]
[1763587307904,0.1909,2983.3,2981.5,8.01642293]
[1763587308132,0.4681,2983.2,2981.8,0.128]
[1763587308269,0.4681,2983.2,2981.9,0.03353566]
[1763587308476,0.1909,2983.3,2982.3,0.1]
[1763587308694,0.1909,2983.3,2982.4,0.128]
[1763587308695,0.659,2983.3,2982.4,0.128]
[1763587309130,0.4681,2983.2,2981.6,0.001]
[1763587309930,0.4681,2983.2,2982.1,0.405504]
[1763587310212,0.659,2983.8,2982.5,0.405504]
[1763587310376,0.659,2983.8,2982.6,0.03352779]
[1763587310577,0.659,2983.8,2981.8,0.001]
[1763587310578,0.4681,2983.7,2981.8,0.001]
[1763587311679,0.90699264,2983.5,2981.6,0.03453903]
[1763587311933,0.4681,2983.7,2981.7,0.128]
[1763587312135,0.1909,2983.8,2981.8,0.405504]
[1763587312437,0.4681,2984.3,2983.3,0.405504]
[1763587312592,0.4681,2984.3,2983.5,0.405504]
[1763587313222,0.4681,2984.9,2983.6,8.01642293]
[1763587313432,0.1909,2986.7,2984.2,0.405504]
[1763587313750,0.1909,2986.7,2984.3,0.128]
[1763587313751,0.659,2984.9,2984.3,0.128]
[1763587313908,0.659,2985.6,2984.4,1.31249664]
[1763587314098,0.659,2985.6,2984.4,1.41249664]
[1763587314538,0.659,2985.6,2984.4,1.31249664]
[1763587314836,0.659,2985.6,2984.4,1.41249664]
[1763587315043,0.1909,2985.6,2984.4,1.41249664]
[1763587315205,0.1909,2985.6,2983.1,0.05]
[1763587315206,0.1909,2985.6,2983.4,0.0335188]
[1763587315406,0.4681,2985.1,2983.3,0.4521]
[1763587315648,0.4681,2984.6,2983.2,8.01642293]
[1763587315933,0.1909,2985.6,2983.2,8.01642293]
[1763587315934,0.4681,2985.1,2983.2,8.01642293]
[1763587316096,0.1909,2985.6,2983.2,8.01642293]
[1763587316428,0.4701,2984.5,2982.5,3.98969186]
[1763587316629,0.4701,2984.5,2982.8,8.01642293]
[1763587316830,0.002,2984.5,2983.4,8.01642293]
[1763587317129,0.002,2984.5,2983.6,0.405504]
[1763587317295,0.002,2984.5,2983.5,1.48709264]
[1763587317296,0.002,2984.5,2984.1,0.405504]
[1763587317498,0.002,2984.5,2984.2,0.128]
[1763587318136,0.002,2984.5,2984.3,0.128]
[1763587318323,0.002,2984.5,2983.6,0.4521]
[1763587318640,0.002,2984.5,2983.9,0.405504]
[1763587319021,0.002,2984.5,2982.8,3.35253424]
[1763587319022,0.002,2984.5,2983.1,7.15650281]
[1763587319344,0.002,2984.5,2983.6,4.25855318]
[1763587319547,0.002,2984.5,2983.1,0.4521]
[1763587319548,0.1909,2983.2,2982.7,0.128]
[1763587319753,0.4681,2984.4,2982.7,0.128]
[1763587320257,0.4681,2984.4,2982.3,0.90699264]
[1763587320258,0.4681,2984.4,2982.8,0.129]
[1763587320462,0.4681,2984.4,2981.6,0.001]
[1763587320675,1.31249664,2984.1,2981.6,0.001]
[1763587320955,1.31249664,2983.5,2981.6,0.001]
[1763587321119,0.84865229,2984.3,2981.6,0.001]
[1763587321120,0.4681,2983.4,2981.7,8.01642293]
[1763587321314,0.4681,2983.4,2982.3,8.01642293]
[1763587321514,0.4681,2984.0,2982.9,8.01642293]
[1763587321746,0.002,2984.5,2983.5,0.90699264]
[1763587322055,0.002,2984.5,2983.6,0.129]
[1763587322363,0.002,2984.5,2982.0,0.90699264]
[1763587322364,0.4681,2984.4,2982.0,0.90699264]
[1763587322567,0.4681,2984.4,2982.7,0.90699264]
[1763587322872,0.4681,2984.4,2983.3,0.405504]
[1763587323011,0.002,2984.5,2983.2,0.90699264]
[1763587323215,0.4701,2984.5,2983.3,1.44149664]
[1763587323451,0.4701,2984.5,2984.0,0.405504]
[1763587323452,0.002,2984.5,2984.0,0.405504]
[1763587323630,0.002,2984.5,2984.4,9.32891957]
[1763587323828,0.002,2984.5,2984.4,1.44149664]
[1763587324041,0.002,2984.5,2984.4,1.92710421]
[1763587324318,0.002,2984.5,2984.4,1.44149664]
[1763587324513,0.002,2984.5,2984.4,1.89359664]
[1763587324729,0.4681,2986.4,2984.5,1.31249664]
[1763587324937,0.4681,2986.4,2985.0,1.31249664]
[1763587325141,0.4681,2986.4,2983.9,0.90699264]
[1763587325349,0.4681,2986.4,2984.0,0.129]
[1763587325548,0.4681,2986.4,2984.1,0.405504]
[1763587325761,0.4681,2986.4,2984.5,0.405504]
[1763587325919,0.4681,2986.4,2984.1,1.35909264]
[1763587326119,0.4681,2986.4,2984.7,0.405504]
[1763587326360,0.4681,2986.4,2984.7,1.31249664]
[1763587326560,0.4681,2986.4,2984.9,0.405504]
[1763587326730,5.50854575,2986.9,2985.3,1.31249664]
[1763587326934,5.50854575,2986.9,2985.5,0.405504]
[1763587327134,5.50854575,2986.9,2985.9,0.405504]
[1763587327357,5.04044575,2986.9,2986.0,1.03599264]
[1763587327656,5.04044575,2986.9,2986.1,0.405504]
[1763587327866,0.09335168,2986.4,2986.1,0.897004]
[1763587328173,0.09335168,2986.4,2986.3,7.98510175]
[1763587328391,5.04044575,2986.9,2986.3,7.98510175]
[1763587328575,0.4896,2988.9,2986.9,0.405504]
[1763587328744,0.4896,2988.6,2987.4,1.31249664]
[1763587329266,0.4896,2988.6,2987.5,6.67260511]
[1763587329446,0.4896,2988.6,2987.7,0.405504]
[1763587329646,0.1982,2988.8,2987.9,0.405504]
[1763587329945,0.1982,2988.8,2987.2,1.39849264]
[1763587330153,0.6878,2988.8,2987.7,1.31249664]
[1763587330481,0.4896,2988.8,2987.7,1.74273453]
[1763587330653,0.4896,2988.8,2986.7,0.37629364]
[1763587330654,0.4896,2988.6,2987.1,0.405504]
[1763587330842,0.4896,2988.6,2987.1,0.90699264]
[1763587331043,0.4896,2988.6,2985.9,0.465402]
[1763587331044,0.4896,2988.6,2984.9,0.001]
[1763587331243,0.4896,2988.6,2985.6,0.128]
[1763587331244,0.1982,2987.1,2985.6,0.128]
[1763587331679,0.4896,2987.0,2985.2,0.001]
[1763587331889,0.4896,2987.0,2985.3,0.128]
[1763587332249,0.4896,2987.0,2985.3,0.90699264]
[1763587332442,0.4896,2987.0,2985.2,3.3508593]
[1763587332443,0.4896,2987.0,2985.2,0.001]
[1763587332902,0.4896,2987.0,2985.3,1.03499264]
[1763587333063,0.4896,2987.0,2985.6,0.90699264]
[1763587333241,0.4896,2987.0,2985.7,0.405504]
[1763587333444,0.4896,2987.0,2985.2,6.70071226]
[1763587333445,0.4896,2987.0,2985.2,0.001]
[1763587334543,0.4896,2987.0,2985.3,0.129]
[1763587335189,0.4896,2987.0,2985.4,0.03349634]
[1763587335506,0.1982,2987.1,2985.8,0.90699264]
[1763587335507,0.4896,2986.9,2985.8,0.90699264]
[1763587335864,0.4896,2986.9,2985.2,3.35075652]
[1763587335865,0.4896,2986.9,2985.2,0.001]
[1763587336163,0.4896,2986.9,2985.7,0.129]
[1763587336406,0.4896,2986.9,2985.2,0.001]
[1763587336569,0.4896,2986.9,2982.7,10.0]
[1763587336570,0.1982,2985.3,2982.7,10.0]
[1763587336765,0.4896,2985.2,2982.8,0.129]
[1763587337179,0.4896,2985.2,2982.7,0.90699264]
[1763587337180,0.4896,2985.2,2982.6,6.67260511]
[1763587337352,0.4896,2985.2,2980.9,17.53183155]
[1763587337353,0.405504,2985.1,2982.7,0.129]
[1763587337549,0.75677091,2985.0,2982.8,0.03352554]
[1763587337761,0.1982,2985.3,2983.1,6.67260511]
[1763587337762,0.4896,2985.2,2983.1,6.67260511]
[1763587337983,0.4896,2985.2,2983.7,0.405504]
[1763587338215,0.4896,2985.2,2982.8,0.4915]
[1763587338216,0.1982,2985.9,2984.7,6.67260511]
[1763587338358,0.1982,2985.9,2984.8,0.129]
[1763587338552,0.4896,2985.8,2983.4,0.90699264]
[1763587338794,0.4896,2985.8,2983.5,0.129]
[1763587339351,0.4896,2985.8,2984.0,0.90699264]
[1763587339949,0.4896,2985.8,2984.4,6.67260511]
[1763587340155,0.4896,2985.8,2984.5,0.129]
[1763587340367,0.4896,2985.8,2984.6,0.129]
[1763587340956,0.4896,2985.8,2983.2,0.4915]
[1763587341155,0.4896,2985.8,2981.4,10.88586438]
[1763587341156,6.67260511,2985.6,2982.0,10.0]
[1763587341488,1.57425315,2985.5,2982.3,6.67260511]
[1763587341799,1.15686051,2985.5,2983.0,0.405504]
[1763587341955,0.4896,2985.4,2983.4,1.31249664]
[1763587342188,0.4896,2985.4,2982.4,0.4915]
[1763587342189,5.53712945,2990.6,2989.0,1.31019408]
[1763587342399,0.1982,2992.6,2990.5,6.67260511]
[1763587342727,0.1982,2992.6,2989.2,0.05]
[1763587342728,0.1982,2992.6,2991.2,0.09999999]
[1763587343491,0.1982,2992.6,2991.2,1.00699263]
[1763587343712,0.1982,2992.6,2991.2,0.92199264]
[1763587343922,0.4896,2992.7,2991.2,3.35813987]
[1763587344134,1.0,2992.8,2991.2,0.5065]
[1763587344341,0.4896,2992.4,2991.2,0.015]
[1763587344539,1.0,2992.8,2991.2,0.146]
[1763587344828,0.4896,2992.5,2991.2,0.146]
[1763587345533,0.4896,2992.5,2991.0,0.015]
[1763587345688,1.0,2992.8,2991.0,0.015]
[1763587345886,0.4757,2992.7,2991.2,0.015]
[1763587346096,5.03770505,2991.3,2991.2,7.59459775]
[1763587346326,1.0,2992.8,2992.0,0.015]
[1763587346828,1.0,2992.8,2991.4,0.131]
[1763587346829,1.0,2992.8,2991.7,0.90699264]
[1763587346989,1.0,2992.8,2992.1,0.131]
[1763587347203,1.0,2992.8,2992.4,0.90699264]
[1763587347422,1.0,2992.8,2992.1,0.131]
[1763587347703,1.0,2992.8,2992.1,1.03799264]
[1763587347898,1.0,2992.8,2992.4,0.90699264]
[1763587348298,1.0,2992.8,2992.5,0.90699264]
[1763587348547,0.4927,2993.6,2992.7,0.1814]
[1763587348548,0.017,2993.6,2992.7,0.1814]
[1763587348846,0.017,2993.6,2992.8,0.131]
[1763587349139,0.017,2993.6,2992.0,0.1814]
[1763587349297,0.017,2993.6,2992.2,0.90699264]
[1763587349499,0.4757,2993.4,2992.1,6.80360511]
[1763587349717,0.4757,2993.4,2991.5,0.131]
[1763587349923,0.4757,2993.4,2991.9,6.67260511]
[1763587350152,0.4757,2993.4,2992.0,0.90699264]
[1763587350353,0.4757,2993.4,2992.1,0.131]
[1763587350648,0.017,2993.6,2992.1,0.131]
[1763587350649,0.017,2993.6,2992.3,0.90699264]
[1763587350811,0.4757,2993.4,2992.4,0.90699264]
[1763587351015,0.017,2993.6,2992.4,0.90699264]
[1763587351256,0.4757,2993.4,2992.1,0.131]
[1763587351459,0.4757,2993.4,2992.6,0.90699264]
[1763587351962,0.4757,2993.4,2991.1,0.4579]
[1763587352263,0.4757,2993.4,2992.0,6.67260511]
[1763587352416,0.4757,2993.4,2992.1,1.03799264]
[1763587352618,1.0300205,2993.4,2992.1,0.131]
[1763587352846,0.4757,2993.3,2992.1,0.131]
[1763587353520,0.017,2993.6,2992.4,0.90699264]
[1763587353716,0.017,2993.6,2992.9,0.90699264]
[1763587353965,0.017,2993.6,2993.4,7.57959775]
[1763587354128,0.6739,2995.2,2994.0,0.1]
[1763587354332,6.67260511,2997.4,2994.7,0.90699264]
[1763587354333,5.52620505,2995.7,2994.7,0.90699264]
[1763587354544,5.52620505,2995.7,2994.8,0.131]
[1763587354840,0.4757,2995.6,2994.8,0.131]
[1763587355227,5.05050505,2995.7,2994.8,0.131]
[1763587356055,0.4757,2995.6,2994.8,0.131]
[1763587356256,0.4757,2995.6,2994.1,6.67260511]
[1763587356257,0.4757,2995.6,2994.2,0.90699264]
[1763587356471,0.4757,2995.6,2994.3,0.131]
[1763587356616,0.4757,2995.6,2994.4,0.131]
[1763587356816,0.4757,2995.6,2994.5,6.67260511]
[1763587357169,0.4757,2995.6,2993.3,6.67260511]
[1763587357375,0.4757,2995.6,2992.6,3.34157588]
[1763587357376,0.193,2994.5,2992.6,3.34157588]
[1763587357549,0.193,2994.5,2992.4,0.4579]
[1763587357550,0.193,2994.5,2993.0,6.67260511]
[1763587357734,0.193,2994.5,2992.7,0.131]
[1763587357735,0.4757,2994.8,2993.5,6.67260511]
[1763587357932,5.05050505,2995.7,2994.0,6.67260511]
[1763587357933,0.1892,2995.0,2994.0,6.67260511]
[1763587358249,0.4855,2995.5,2994.8,0.01748105]
[1763587358671,0.1892,2994.9,2993.4,6.67260511]
[1763587358840,0.1892,2994.9,2993.9,6.80360511]
[1763587359173,0.6747,2994.9,2994.0,0.131]
[1763587359537,0.4855,2994.9,2994.2,0.90699264]
[1763587359876,5.05050505,2995.7,2994.7,0.90699264]
[1763587360047,5.05050505,2995.7,2994.9,0.1]
[1763587360248,5.05050505,2995.7,2994.8,0.131]
[1763587360461,0.4855,2995.6,2994.8,0.131]
[1763587360771,0.4855,2995.6,2994.7,0.90699264]
[1763587360972,5.05050505,2995.7,2995.1,6.67260511]
[1763587361175,5.05050505,2995.7,2995.6,7.57959775]
[1763587361374,5.04047434,2995.7,2995.6,7.67959775]
[1763587362039,0.4855,2996.8,2995.7,0.90699264]
[1763587362267,0.4855,2996.8,2995.8,0.13]
[1763587363038,0.4855,2996.8,2996.0,0.90699264]
[1763587363240,0.28003496,2997.0,2995.9,6.67260511]
[1763587363241,0.28003496,2997.0,2995.9,7.57959775]
[1763587363539,0.28003496,2997.0,2995.8,0.13]
[1763587363540,0.4855,2996.7,2995.8,0.13]
[1763587363979,0.405504,2996.6,2994.2,6.67260511]
[1763587364294,0.405504,2996.6,2993.8,0.1773]
[1763587364295,0.405504,2996.6,2994.3,0.13]
[1763587364438,0.405504,2996.4,2994.3,0.13]
[1763587364868,0.405504,2996.2,2994.4,0.90699264]
[1763587365105,0.405504,2996.2,2993.8,6.67260511]
[1763587365420,0.405504,2996.0,2993.2,6.67260511]
[1763587365568,0.405504,2995.8,2993.2,6.67260511]
[1763587365767,0.405504,2995.8,2993.3,0.13]
[1763587366074,0.405504,2995.6,2993.3,0.90699264]
[1763587366276,0.405504,2995.2,2992.7,6.67260511]
[1763587366583,0.405504,2995.4,2991.7,0.6804]
[1763587366774,0.405504,2995.0,2992.2,6.67260511]
[1763587366971,0.405504,2995.0,2993.5,0.001]
[1763587367200,0.405504,2994.8,2993.5,0.001]
[1763587367571,0.4855,2994.7,2993.5,0.001]
[1763587369571,0.405504,2994.6,2991.4,6.67260511]
[1763587369796,0.1892,2993.1,2991.5,0.13]
[1763587369980,0.1892,2993.1,2991.6,0.90699264]
[1763587370199,0.4855,2993.0,2991.5,0.13]
[1763587370506,0.4855,2993.0,2990.9,0.499]
[1763587370507,0.4855,2993.0,2991.4,6.67260511]
[1763587370707,0.4855,2993.0,2991.1,6.67260511]
[1763587371309,0.405504,2992.9,2991.1,6.67260511]
[1763587371618,0.4855,2993.0,2990.8,0.13]
[1763587371770,0.4855,2992.9,2990.9,6.67260511]
[1763587371977,0.4855,2992.9,2990.8,3.47357119]
[1763587371978,1.31249664,2992.8,2989.6,0.499]
[1763587372188,1.31249664,2992.8,2988.3,10.87811402]
[1763587372189,0.405504,2990.8,2988.3,3.34638423]
[1763587372514,0.1892,2990.9,2988.6,6.67260511]
[1763587372818,0.1892,2990.9,2988.4,0.629]
[1763587372819,0.405504,2990.7,2988.4,7.30160511]
[1763587373005,0.405504,2990.7,2988.4,0.13]
[1763587373212,0.405504,2990.5,2988.4,0.13]
[1763587373596,0.4855,2990.4,2988.4,0.13]
[1763587373795,0.4855,2990.4,2988.4,6.82250569]
[1763587374408,0.405504,2990.3,2988.4,0.13]
[1763587374730,0.4855,2990.4,2988.4,0.13]
[1763587374731,0.4855,2990.4,2988.4,3.47621646]
[1763587375031,0.405504,2990.2,2988.5,0.13]
[1763587375190,6.67260511,2989.9,2987.2,0.1824]
[1763587375391,1.07276451,2989.8,2987.2,3.52999636]
[1763587375593,1.07276451,2989.8,2987.1,0.13]
[1763587375594,2.46525715,2989.8,2987.1,0.13]
[1763587375902,0.405504,2987.1,2985.7,10.0]
[1763587376085,0.1892,2987.2,2985.1,8.03183155]
[1763587376086,0.1892,2987.2,2985.8,0.13]
[1763587376287,0.4855,2987.1,2985.4,0.131]
[1763587376511,0.4855,2987.1,2985.5,6.70610033]
[1763587376698,0.6747,2987.7,2986.1,0.90699264]
[1763587376898,0.405504,2989.5,2986.5,6.67260511]
[1763587377100,0.405504,2989.5,2986.6,1.03699264]
[1763587377302,0.405504,2989.3,2986.6,6.80260511]
[1763587377825,0.4855,2989.2,2986.6,0.13]
[1763587378125,0.405504,2989.1,2986.6,3.47828225]
[1763587378445,0.405504,2989.1,2986.1,0.499]
[1763587378633,0.405504,2988.8,2985.1,0.001]
[1763587378832,6.67260511,2987.2,2985.1,0.001]
[1763587378989,0.1892,2985.5,2985.1,0.001]
[1763587379391,0.6747,2986.5,2985.1,0.131]
[1763587379834,0.4855,2986.4,2985.1,0.131]
[1763587380557,0.4855,2986.6,2985.1,0.001]
[1763587380762,0.405504,2986.3,2985.1,0.001]
[1763587380957,0.4855,2986.4,2985.1,0.001]
[1763587381145,0.1892,2988.0,2985.1,0.001]
[1763587381146,0.1892,2988.0,2986.0,6.67260511]
[1763587381323,0.1892,2988.0,2985.5,0.499]
[1763587381324,0.4855,2988.7,2987.3,0.90699264]
[1763587381524,0.4855,2988.7,2987.4,0.13]
[1763587381960,0.4855,2989.4,2987.8,6.67260511]
[1763587382165,0.4855,2989.4,2987.5,0.13]
[1763587382348,0.4855,2989.4,2987.8,6.67260511]
[1763587382526,0.4855,2989.4,2987.9,0.90699264]
[1763587382726,0.4855,2989.4,2987.1,0.499]
[1763587382727,0.4855,2989.4,2987.7,0.13]
[1763587382937,0.405504,2989.3,2987.7,0.13]
[1763587383137,0.4855,2989.2,2987.7,0.13]
[1763587383626,0.405504,2989.1,2987.8,0.13]
[1763587383828,0.1892,2987.7,2985.8,0.499]
[1763587384035,0.1892,2987.7,2986.2,6.67260511]
[1763587384240,0.1892,2987.7,2986.3,0.90699264]
[1763587384437,0.4855,2987.6,2986.3,0.90699264]
[1763587384650,0.4855,2987.6,2986.5,0.03348401]
[1763587384849,0.4855,2987.6,2986.5,0.13]
[1763587385360,0.1892,2987.7,2986.5,0.13]
[1763587385929,0.4855,2988.1,2986.6,0.90699264]
[1763587386434,0.1892,2988.2,2987.1,0.90699264]
[1763587386658,0.4855,2988.1,2987.5,0.001]
[1763587386974,0.405504,2986.4,2985.4,0.001]
[1763587387188,0.1892,2986.5,2985.4,0.001]
[1763587387689,0.17510513,2995.4,2993.1,0.17465028]
[1763587387889,0.1892,2995.3,2993.2,0.544504]
[1763587388184,0.4842,2995.7,2994.3,0.405504]
[1763587388369,0.4842,2995.7,2995.6,0.09999999]
[1763587388573,0.1892,2996.7,2995.6,0.09999999]
[1763587388574,0.4862,2996.4,2995.6,0.09999999]
[1763587388948,0.4862,2996.4,2995.7,0.09999999]
[1763587389270,0.4862,2996.4,2996.2,0.09999999]
[1763587389271,0.002,2996.4,2996.2,0.09999999]
[1763587389953,0.002,2996.4,2996.2,0.405504]
[1763587390385,0.002,2996.4,2996.2,0.85664638]
[1763587390543,0.09083496,2997.0,2996.3,0.85664638]
[1763587390749,0.09083496,2997.0,2996.9,8.3609363]
[1763587391172,0.09083496,2997.0,2996.9,8.81207868]
[1763587391349,0.09083496,2997.0,2996.9,9.33491563]
[1763587391558,0.09083496,2997.0,2996.9,12.67169697]
[1763587391784,0.09083496,2997.0,2996.9,3.74228534]
[1763587392362,5.05050505,2998.0,2997.0,0.405504]
[1763587392563,5.05050505,2998.0,2997.6,0.405504]
[1763587392763,5.05050505,2998.0,2997.5,7.9554323]
[1763587392764,5.05050505,2998.0,2997.8,0.405504]
[1763587393296,5.05050505,2998.0,2997.8,0.505504]
[1763587393583,5.05050505,2998.0,2997.9,3.3356683]
[1763587393784,5.05050505,2998.0,2997.8,0.505504]
[1763587393998,5.05050505,2998.0,2995.4,0.05]
[1763587394164,5.55555556,2998.0,2996.4,7.9554323]
[1763587394484,0.4842,2997.9,2995.8,3.47600654]
[1763587394648,0.4842,2997.9,2995.8,0.138]
[1763587395269,0.4842,2997.9,2995.8,8.0934323]
[1763587395485,0.4842,2997.9,2996.3,7.9554323]
[1763587395690,0.55347051,2997.8,2994.9,0.45114238]
[1763587395984,0.55347051,2997.8,2992.7,1.62196844]
[1763587395985,0.405504,2997.5,2994.4,0.138]
[1763587396193,0.405504,2997.6,2994.5,0.138]
[1763587396360,0.405504,2997.2,2994.0,0.138]
[1763587396559,1.27974323,2997.5,2994.7,7.9554323]
[1763587396760,0.4842,2997.4,2994.8,0.138]
[1763587396963,0.405504,2997.7,2994.8,0.138]
[1763587396964,0.4842,2997.7,2994.8,0.138]
[1763587397174,0.4842,2997.7,2995.4,0.1]
[1763587397374,0.4842,2997.7,2993.9,10.0]
[1763587397558,0.4842,2997.7,2995.4,7.9554323]
[1763587397758,0.4842,2997.7,2996.1,0.405504]
[1763587397954,0.4842,2997.7,2996.3,0.405504]
[1763587398165,0.4842,2997.7,2996.5,1.31249664]
[1763587398571,5.05050505,2998.0,2996.6,0.45114238]
[1763587398772,5.53470505,2998.0,2996.7,0.138]
[1763587399022,5.53470505,2998.0,2996.8,0.405504]
[1763587399298,5.53470505,2998.0,2996.7,1.04499264]
[1763587399299,0.6687,2997.9,2996.7,0.90699264]
[1763587399503,0.6687,2997.9,2996.7,0.138]
[1763587399856,0.4842,2997.8,2996.5,0.138]
[1763587400086,0.4842,2997.8,2996.6,1.31249664]
[1763587400288,0.4842,2997.8,2996.5,8.0934323]
[1763587400289,0.4842,2997.8,2993.6,1.36019408]
[1763587400459,0.4842,2997.8,2995.6,8.0934323]
[1763587400671,5.05050505,2998.0,2996.5,0.405504]
[1763587400875,5.05050505,2998.0,2996.6,0.138]
[1763587401252,0.6687,2997.9,2996.6,1.04499264]
[1763587401489,0.4842,2997.8,2996.6,0.138]
[1763587401877,0.4842,2997.8,2995.8,0.405504]
[1763587402078,0.4842,2997.8,2993.3,3.34070794]
[1763587402079,0.4842,2997.8,2995.1,8.0554323]
[1763587402305,0.4842,2997.8,2994.8,6.67824228]
[1763587402306,5.05050505,2998.0,2995.2,0.138]
[1763587402615,5.05050505,2998.0,2997.8,0.90699264]
[1763587402916,5.05050505,2998.0,2997.8,1.04499264]
[1763587403208,5.05050505,2998.0,2997.4,0.405504]
[1763587403209,5.05050505,2998.0,2997.5,0.543504]
[1763587403372,5.03303694,2998.0,2997.5,0.543504]
[1763587403896,5.03303694,2998.0,2997.7,0.405504]
[1763587404223,5.03303694,2998.0,2997.6,0.138]
[1763587404391,5.01557191,2998.0,2997.6,0.138]
[1763587404582,5.01557191,2998.0,2996.3,3.33739172]
[1763587404583,0.4842,2997.9,2996.4,7.9554323]
[1763587404783,5.01557191,2998.0,2996.5,0.138]